bitfinex-derivatives/quotes_SOLF0:USTF0_20250131
["timestamp","ask_amount","ask_price","bid_price","bid_amount"]
[1738350245972,2.754,231.43,231.26,23.71107904]
[1738350246172,0.02953014,231.33,231.28,0.03059175]
[1738350246379,11.094,231.43,231.26,23.71107904]
[1738350246574,11.094,231.43,231.26,19.38597904]
[1738350246775,0.02841416,231.33,231.28,0.02937976]
[1738350246974,19.38597904,231.37,231.18,19.38597904]
[1738350247171,19.38597904,231.37,231.15,0.0846]
[1738350247470,19.38597904,231.37,231.28,0.0291877]
[1738350247672,19.38597904,231.41,231.28,0.0291877]
[1738350247881,0.02754299,231.35,231.21,19.38597904]
[1738350248177,11.094,231.43,231.32,0.0320366]
[1738350248379,0.03248278,231.3,231.25,19.38597904]
[1738350248681,0.0285693,231.3,231.26,4.3251]
[1738350248878,0.0285693,231.3,231.25,19.41828247]
[1738350250680,0.0285693,231.3,231.28,4.3247]
[1738350251081,0.0285693,231.3,231.25,19.41828247]
[1738350251774,0.0285693,231.3,231.27,4.3249]
[1738350252279,0.0285693,231.3,231.25,19.41828247]
[1738350252675,0.0285693,231.3,231.25,0.03230343]
[1738350252876,11.094,231.43,231.25,0.03230343]
[1738350252877,8.34,231.43,231.29,19.38597904]
[1738350253072,12.662,231.43,231.33,19.38597904]
[1738350253376,12.662,231.43,231.26,0.0845]
[1738350253377,8.34,231.43,231.26,0.0845]
[1738350253577,19.38597904,231.38,231.21,19.38597904]
[1738350253775,23.67557904,231.42,231.22,19.38597904]
[1738350253975,4.2896,231.42,231.26,19.38597904]
[1738350254176,0.02782895,231.32,231.26,19.38597904]
[1738350254579,0.02782895,231.32,231.27,0.03011827]
[1738350256183,4.35192895,231.32,231.27,0.03011827]
[1738350256481,0.02782895,231.32,231.27,0.03011827]
[1738350257781,0.02782895,231.32,231.27,2.03011827]
[1738350258278,0.02782895,231.32,231.27,6.35511827]
[1738350258480,0.02782895,231.32,231.27,2.03011827]
[1738350258781,0.02782895,231.32,231.27,6.35501827]
[1738350259081,0.02782895,231.32,231.27,2.03011827]
[1738350260285,0.02782895,231.32,231.27,6.35491827]
[1738350261482,0.02782895,231.32,231.27,2.03011827]
[1738350261888,19.38597904,231.31,231.15,0.0845]
[1738350262079,1.4553,231.3,231.15,4.4117]
[1738350262277,19.38597904,231.27,231.1,19.38597904]
[1738350262480,19.38597904,231.27,231.07,4.3286]
[1738350262481,4.3262,231.21,231.07,4.3286]
[1738350262782,1.4119,231.31,231.19,12.1320572]
[1738350263083,4.325,231.27,231.19,12.1320572]
[1738350263285,4.35607364,231.27,231.19,12.1320572]
[1738350263485,0.03107364,231.27,231.21,0.02949259]
[1738350265979,12.1320572,231.23,231.13,4.3274]
[1738350266181,12.1320572,231.23,230.89,119.12886011]
[1738350266182,12.1320572,231.23,231.07,12.1320572]
[1738350266688,4.3261,231.22,231.1,12.1320572]
[1738350267279,0.03201975,231.18,231.14,0.02805326]
[1738350268485,4.3269,231.17,231.14,0.02805326]
[1738350268688,0.03201975,231.18,231.14,0.02805326]
[1738350272586,0.03201975,231.18,231.14,19.43752865]
[1738350272789,0.03201975,231.18,231.17,4.3268]
[1738350273193,4.3253,231.26,231.18,4.3265]
[1738350273489,8.25,231.26,231.14,19.40947539]
[1738350273687,4.3255,231.25,231.14,19.40947539]
[1738350274084,8.25,231.26,231.18,19.40947539]
[1738350274385,0.03147304,231.22,231.18,19.40947539]
[1738350275082,0.03147304,231.22,231.18,23.73607539]
[1738350275282,8.25,231.26,231.18,19.40947539]
[1738350275588,1.4578,231.35,231.22,19.40947539]
[1738350275589,2.7943,231.35,231.22,19.40947539]
[1738350275794,4.3237,231.34,231.26,19.40947539]
[1738350276692,0.03198978,231.32,231.28,0.03188569]
[1738350276994,7.96198978,231.32,231.28,0.03188569]
[1738350277886,7.96198978,231.32,231.28,4.35658569]
[1738350278092,7.96198978,231.32,231.28,0.03188569]
[1738350278593,7.96198978,231.32,231.28,4.35648569]
[1738350278995,7.96198978,231.32,231.3,19.40947539]
[1738350279194,2.8881,231.42,231.3,19.40947539]
[1738350279395,7.2104,231.42,231.32,4.3239]
[1738350280089,2.8881,231.42,231.33,4.3238]
[1738350280491,0.02855014,231.39,231.35,0.0321341]
[1738350280694,0.02855014,231.39,231.37,4.3231]
[1738350280894,8.95,231.42,231.34,19.40947539]
[1738350281102,0.02988063,231.4,231.35,0.03042453]
[1738350281293,0.02988063,231.4,231.37,4.3231]
[1738350282993,0.02988063,231.4,231.35,0.03042453]
[1738350284095,4.35248063,231.4,231.35,0.03042453]
[1738350284398,0.02988063,231.4,231.35,0.03042453]
[1738350284795,4.3229,231.39,231.35,0.03042453]
[1738350285498,0.02988063,231.4,231.35,0.03042453]
[1738350288501,4.323,231.38,231.35,0.03042453]
[1738350288693,0.02988063,231.4,231.35,0.03042453]
[1738350289901,4.3228,231.39,231.35,0.03042453]
[1738350290200,0.02988063,231.4,231.35,0.03042453]
[1738350291801,0.02988063,231.4,231.35,4.35372453]
[1738350292103,0.02988063,231.4,231.35,0.03042453]
[1738350292997,4.3228,231.39,231.35,0.03042453]
[1738350293203,0.02988063,231.4,231.35,0.03042453]
[1738350294201,4.35248063,231.4,231.35,0.03042453]
[1738350294501,0.02988063,231.4,231.35,0.03042453]
[1738350295401,4.35248063,231.4,231.35,0.03042453]
[1738350295801,0.02988063,231.4,231.35,0.03042453]
[1738350296502,4.3227,231.39,231.35,0.03042453]
[1738350296997,4.323,231.38,231.35,0.03042453]
[1738350297403,0.02988063,231.4,231.27,12.10840286]
[1738350297701,1.341,231.37,231.27,12.10840286]
[1738350298500,4.3235,231.36,231.27,16.43320286]
[1738350298697,0.03093496,231.34,231.3,0.03181677]
[1738350299801,4.3242,231.31,231.3,0.03181677]
[1738350300206,0.03093496,231.34,231.3,0.03181677]
[1738350300407,4.35473496,231.34,231.3,0.03181677]
[1738350300601,0.03093496,231.34,231.3,0.03181677]
[1738350301008,0.03093496,231.34,231.32,4.324]
[1738350301201,0.03093496,231.34,231.3,12.14021963]
[1738350301606,0.03093496,231.34,231.3,16.46461963]
[1738350301806,0.03093496,231.34,231.3,0.03181677]
[1738350302709,4.3242,231.31,231.3,0.03181677]
[1738350302912,0.03093496,231.34,231.3,0.03181677]
[1738350303111,0.03093496,231.34,231.21,12.10840286]
[1738350303305,12.10840286,231.33,231.2,4.3262]
[1738350303501,1.4329,231.32,231.2,4.3262]
[1738350303706,4.3256,231.24,231.18,12.10840286]
[1738350303903,1.4329,231.32,231.18,12.10840286]
[1738350304504,4.3257,231.24,231.23,0.03212518]
[1738350305811,1.4589,231.26,231.15,12.10840286]
[1738350306410,12.10840286,231.3,231.15,12.10840286]
[1738350306615,12.10840286,231.3,231.14,12.10840286]
[1738350306810,12.10840286,231.27,231.14,12.10840286]
[1738350307017,4.326,231.22,231.2,0.03102029]
[1738350307313,0.02923262,231.24,231.2,12.13942315]
[1738350308209,0.02923262,231.24,231.23,12.10840286]
[1738350310114,0.02923262,231.24,231.2,0.03102029]
[1738350310115,0.02923262,231.24,231.2,12.13942315]
[1738350311311,0.02923262,231.24,231.23,12.10840286]
[1738350311707,8.17923262,231.24,231.23,12.10840286]
[1738350312110,8.17923262,231.24,231.2,12.13942315]
[1738350312411,8.17923262,231.24,231.2,0.03102029]
[1738350313813,4.3261,231.21,231.2,0.03102029]
[1738350315015,4.3269,231.17,231.11,12.10840286]
[1738350315418,12.10840286,231.21,231.08,12.10840286]
[1738350316006,4.327,231.17,231.08,12.10840286]
[1738350316210,0.02828011,231.17,231.11,12.10840286]
[1738350316411,2.8829,231.23,231.08,12.10840286]
[1738350316711,0.02916873,231.16,231.08,12.10840286]
[1738350317115,4.35636873,231.16,231.08,16.43680286]
[1738350318414,0.02916873,231.16,231.02,12.10840286]
[1738350318611,12.10840286,231.13,230.99,12.10840286]
[1738350318813,2.8585,231.12,230.99,12.10840286]
[1738350319117,0.03109289,231.08,230.98,85.58]
[1738350319315,0.03109289,231.08,230.96,66.42589633]
[1738350319912,0.03109289,231.08,230.97,4.3306]
[1738350319913,4.3291,231.06,230.97,4.3306]
[1738350320112,13.57900286,231.07,230.9,12.20180286]
[1738350320509,4.3299,231.01,230.93,4.3313]
[1738350320714,4.36226593,231.01,230.93,4.3313]
[1738350321016,0.03236593,231.01,230.93,4.3313]
[1738350321218,0.03236593,231.01,230.96,4.3307]
[1738350321415,0.03236593,231.01,230.93,12.10840286]
[1738350321814,0.03236593,231.01,230.95,4.331]
[1738350322212,0.03236593,231.01,230.82,0.095]
[1738350322516,19.48077988,231.01,230.82,0.095]
[1738350322713,19.44841395,231.01,230.82,0.095]
[1738350322920,0.03320836,230.94,230.85,4.3328]
[1738350323315,0.03320836,230.94,230.82,0.095]
[1738350323516,0.03320836,230.94,230.85,4.3328]
[1738350323710,0.03320836,230.94,230.82,0.095]
[1738350324215,0.03320836,230.94,230.85,19.44841395]
[1738350324412,0.03320836,230.94,230.82,0.095]
[1738350324617,1.3892,231.0,230.93,19.44841395]
[1738350324816,2.8421,231.07,230.93,19.44841395]
[1738350325018,2.8421,231.07,230.97,19.44841395]
[1738350325218,2.8421,231.07,231.0,4.33]
[1738350325422,2.8421,231.07,230.97,19.44841395]
[1738350325620,1.3595,231.15,231.01,19.44841395]
[1738350325821,2.8836,231.14,231.03,4.3294]
[1738350326019,0.03027883,231.04,231.03,4.3294]
[1738350326217,0.03027883,231.04,231.0,0.03121196]
[1738350326523,2.8836,231.14,230.97,19.44841395]
[1738350326828,0.02893617,231.04,231.01,19.44841395]
[1738350327327,2.8836,231.14,231.01,19.44841395]
[1738350327717,0.0303808,231.05,231.01,19.44841395]
[1738350328124,2.8836,231.14,230.97,19.44841395]
[1738350328427,0.03050651,231.05,231.01,0.02825097]
[1738350328818,2.8836,231.14,231.01,0.02825097]
[1738350329219,0.03304403,231.05,231.01,0.02825097]
[1738350329630,4.3282,231.1,231.01,0.02825097]
[1738350329830,0.02757125,231.05,231.01,0.02825097]
[1738350330132,0.02757125,231.05,231.01,19.47666492]
[1738350330332,2.8836,231.14,231.01,19.47666492]
[1738350330532,0.03153994,231.05,231.01,19.47666492]
[1738350331333,2.8836,231.14,231.01,19.47666492]
[1738350332532,0.02965024,231.1,231.01,23.80646492]
[1738350332736,0.02965024,231.1,231.01,19.47666492]
[1738350332936,6.97965024,231.1,231.01,19.47666492]
[1738350333335,6.97965024,231.1,231.03,4.3294]
[1738350333638,6.97965024,231.1,231.01,19.47666492]
[1738350333832,6.97965024,231.1,231.05,19.44841395]
[1738350334035,1.3728,231.23,231.09,19.44841395]
[1738350334638,4.3263,231.2,231.1,4.3281]
[1738350335332,6.4963,231.2,231.1,4.3281]
[1738350335634,0.03196849,231.17,231.13,0.03311133]
[1738350337540,4.3274,231.14,231.13,0.03311133]
[1738350338334,0.03196849,231.17,231.13,0.03311133]
[1738350339236,4.327,231.16,231.13,0.03311133]
[1738350340937,0.03196849,231.17,231.13,0.03311133]
[1738350341238,0.03196849,231.17,231.01,19.44841395]
[1738350341437,19.48038244,231.17,230.97,22.54841395]
[1738350341636,19.44841395,231.17,230.97,22.54841395]
[1738350341839,4.3283,231.1,231.02,4.3296]
[1738350342238,19.44841395,231.17,230.97,22.54841395]
[1738350342638,0.03186391,231.08,231.04,0.02864247]
[1738350342942,4.3282,231.1,231.04,0.02864247]
[1738350343242,0.02741802,231.08,231.04,0.02864247]
[1738350343541,4.328,231.11,231.04,0.02864247]
[1738350343742,19.44841395,231.17,231.04,0.02864247]
[1738350343938,0.02961148,231.08,231.04,0.02864247]
[1738350344138,4.3278,231.12,231.04,0.02864247]
[1738350344442,0.0305833,231.08,231.04,0.02864247]
[1738350347942,0.0305833,231.08,231.05,19.44841395]
[1738350348342,0.0305833,231.08,231.07,4.3287]
[1738350349147,2.17,231.2,231.05,19.44841395]
[1738350349543,4.3273,231.15,231.05,19.44841395]
[1738350350045,2.17,231.2,231.05,19.44841395]
[1738350350540,0.030159,231.12,231.11,4.328]
[1738350350842,4.3265,231.19,231.09,19.44841395]
[1738350351041,2.17,231.2,231.1,4.3281]
[1738350351241,0.02987433,231.14,231.1,4.3281]
[1738350352344,0.02987433,231.14,231.09,0.02809135]
[1738350352536,2.19987433,231.14,231.09,0.02809135]
[1738350353238,2.19987433,231.14,231.09,19.4765053]
[1738350354041,2.19987433,231.14,231.12,4.3277]
[1738350354246,2.19987433,231.14,231.09,19.4765053]
[1738350355651,2.19987433,231.14,231.12,4.3277]
[1738350355847,1.365,231.24,231.09,19.4765053]
[1738350355848,1.365,231.24,231.13,19.44841395]
[1738350356145,1.4667,231.32,231.23,4.3256]
[1738350356146,1.4115,231.31,231.23,4.3256]
[1738350356649,1.4115,231.31,231.21,19.44841395]
[1738350356847,1.4115,231.31,231.13,3.1]
[1738350356848,1.4115,231.31,231.18,4.3266]
[1738350357049,0.03297338,231.28,231.24,0.02809335]
[1738350359051,4.3253,231.26,231.24,0.02809335]
[1738350359253,0.03297338,231.28,231.24,0.02809335]
[1738350359851,4.3253,231.25,231.24,0.02809335]
[1738350360054,0.03297338,231.28,231.13,22.54841395]
[1738350360454,19.44841395,231.28,231.09,19.44841395]
[1738350360954,19.44841395,231.28,231.1,4.328]
[1738350361248,19.44841395,231.28,231.09,19.44841395]
[1738350361454,0.03218345,231.21,231.17,0.03118514]
[1738350361852,22.54841395,231.32,231.13,19.44841395]
[1738350362048,0.02934031,231.21,231.13,19.44841395]
[1738350362245,0.02934031,231.21,231.17,0.03116348]
[1738350363056,4.35544031,231.21,231.17,0.03116348]
[1738350363551,0.02934031,231.21,231.17,0.03116348]
[1738350363748,4.3265,231.19,231.17,0.03116348]
[1738350364256,0.02934031,231.21,231.17,0.03116348]
[1738350364257,4.3267,231.18,231.17,0.03116348]
[1738350364451,0.02934031,231.21,231.05,105.10841395]
[1738350364648,12.13415636,231.18,231.05,85.66]
[1738350364847,4.3278,231.13,231.05,85.66]
[1738350365052,12.13415636,231.18,231.05,85.66]
[1738350365851,0.03178207,231.14,231.09,0.03118027]
[1738350366257,1.45768207,231.14,231.09,0.03118027]
[1738350367156,4.3276,231.13,231.09,0.03118027]
[1738350367356,1.45768207,231.14,231.09,0.03118027]
[1738350367649,4.3282,231.1,230.98,4.3303]
[1738350367854,4.3282,231.1,230.95,19.41893362]
[1738350367855,20.87661569,231.14,230.95,19.41893362]
[1738350368056,20.84483362,231.14,230.95,19.41893362]
[1738350369158,0.02729923,231.07,231.02,0.02881275]
[1738350369750,0.02729923,231.07,230.91,73.74366537]
[1738350369952,4.3301,231.0,230.91,78.07516537]
[1738350370154,19.41893362,231.1,230.87,110.21186712]
[1738350370355,19.41893362,231.06,230.87,110.21186712]
[1738350370558,4.3307,230.97,230.86,4.3325]
[1738350370757,19.41893362,231.02,230.83,138.54779373]
[1738350370957,1.4561,231.01,230.83,138.54779373]
[1738350371256,0.02765107,230.94,230.83,119.12886011]
[1738350371763,4.3317,230.92,230.83,4.3332]
[1738350371964,0.02765107,230.94,230.79,19.41893362]
[1738350372154,4.3323,230.88,230.79,19.41893362]
[1738350372353,19.41893362,230.98,230.79,19.41893362]
[1738350372558,0.02764002,230.86,230.79,19.41893362]
[1738350373068,19.41893362,230.94,230.78,19.48201336]
[1738350373258,0.0295688,230.85,230.78,19.48201336]
[1738350373457,0.0295688,230.85,230.79,19.41893362]
[1738350373660,0.0295688,230.85,230.83,19.41893362]
[1738350373964,0.0295688,230.85,230.83,23.75203362]
[1738350374656,0.0295688,230.85,230.81,4.3335]
[1738350375062,0.0295688,230.85,230.76,22.51893362]
[1738350375865,0.0295688,230.85,230.78,4.334]
[1738350376064,0.0295688,230.85,230.76,22.51893362]
[1738350376466,0.0295688,230.85,230.8,4.3337]
[1738350376668,0.0295688,230.85,230.76,22.51893362]
[1738350376864,0.0295688,230.85,230.76,19.41893362]
[1738350378668,0.0295688,230.85,230.72,19.41893362]
[1738350379170,1.357,230.91,230.72,19.41893362]
[1738350379373,0.02816327,230.81,230.72,19.41893362]
[1738350380564,0.02816327,230.81,230.73,4.3351]
[1738350381262,0.02816327,230.81,230.74,4.3349]
[1738350381460,0.02816327,230.81,230.72,19.41893362]
[1738350382368,0.02816327,230.81,230.76,19.41893362]
[1738350382866,0.02816327,230.81,230.8,4.3338]
[1738350383063,0.02816327,230.81,230.76,19.41893362]
[1738350384170,0.02816327,230.81,230.78,4.334]
[1738350384371,0.02816327,230.81,230.76,19.41893362]
[1738350384565,0.02816327,230.81,230.72,19.41893362]
[1738350386268,0.02816327,230.81,230.77,4.3343]
[1738350386667,0.02816327,230.81,230.72,19.41893362]
[1738350387463,0.02816327,230.81,230.79,4.3339]
[1738350387665,1.357,230.91,230.8,19.41893362]
[1738350388370,1.357,230.91,230.84,4.333]
[1738350388572,1.4445,230.96,230.8,19.41893362]
[1738350388771,4.3311,230.95,230.85,4.3327]
[1738350388967,4.3311,230.95,230.86,0.03179628]
[1738350388968,0.02906529,230.9,230.86,0.03179628]
[1738350389864,0.02906529,230.9,230.86,4.36439628]
[1738350390069,0.02906529,230.9,230.86,0.03179628]
[1738350390474,0.02906529,230.9,230.88,19.41893362]
[1738350390766,2.7637,231.05,230.88,38.83786724]
[1738350390972,2.7637,231.05,230.97,19.41893362]
[1738350391374,2.7637,231.05,230.93,19.41893362]
[1738350391567,2.7637,231.05,230.89,0.2139]
[1738350391568,2.7637,231.05,230.97,19.41893362]
[1738350391773,4.3286,231.08,230.97,23.74943362]
[1738350391974,0.02977473,231.01,230.97,0.03329523]
[1738350392374,4.3283,231.1,230.99,4.3302]
[1738350392772,0.0292567,231.01,230.97,19.4465884]
[1738350393075,2.8117,231.13,230.93,19.41893362]
[1738350393474,0.03029067,231.01,230.97,0.03257063]
[1738350393869,2.8117,231.13,230.93,19.41893362]
[1738350394174,0.03256015,231.01,230.97,0.0331294]
[1738350394674,19.41893362,231.1,230.9,4.3318]
[1738350395077,0.02987872,231.01,230.97,0.03056689]
[1738350395477,2.8117,231.13,230.97,0.03056689]
[1738350395679,19.41893362,231.28,231.05,19.41893362]
[1738350395874,2.8446,231.23,231.05,19.41893362]
[1738350396174,2.8446,231.23,231.01,0.2121]
[1738350396175,0.02961563,231.19,231.14,0.03168072]
[1738350396579,4.3272,231.15,231.14,0.03168072]
[1738350397475,0.02945164,231.19,231.01,0.2121]
[1738350397674,0.02945164,231.19,231.0,19.41893362]
[1738350397874,19.41893362,231.2,231.0,19.41893362]
[1738350398473,2.8446,231.23,231.08,19.41893362]
[1738350398776,0.02949567,231.12,231.08,19.44811448]
[1738350398976,4.3263,231.2,231.08,19.41893362]
[1738350399279,0.0294785,231.12,231.08,19.44710103]
[1738350399469,0.0294785,231.12,231.09,4.3282]
[1738350399676,4.3269,231.17,231.09,4.3282]
[1738350399879,4.3269,231.17,231.08,19.41893362]
[1738350400079,0.02991322,231.13,231.08,19.44691939]
[1738350400774,0.02991322,231.13,231.08,23.77541939]
[1738350401077,0.02991322,231.13,231.08,19.44691939]
[1738350401677,0.02991322,231.13,231.08,0.02798577]
[1738350401987,0.02991322,231.13,231.0,19.41893362]
[1738350402279,0.02991322,231.13,230.96,19.41893362]
[1738350402474,1.3398,231.15,230.96,19.41893362]
[1738350403076,1.3398,231.15,230.95,5.15103714]
[1738350403275,1.3398,231.15,231.0,19.41893362]
[1738350403476,0.03083669,231.08,231.0,19.41893362]
[1738350403877,0.03083669,231.08,231.01,4.3298]
[1738350404479,4.35943669,231.08,231.0,19.41893362]
[1738350404679,0.03083669,231.08,231.0,19.41893362]
[1738350405388,0.03083669,231.08,230.96,19.41893362]
[1738350405984,4.3287,231.07,230.98,4.3304]
[1738350406183,0.03083669,231.08,231.0,19.41893362]
[1738350406684,4.3285,231.09,231.0,19.41893362]
[1738350406878,0.03171081,231.06,231.0,19.41893362]
[1738350407083,4.36061081,231.06,231.0,19.41893362]
[1738350407283,0.03171081,231.06,231.0,19.41893362]
[1738350407784,0.03171081,231.06,231.04,19.41893362]
[1738350408286,0.03171081,231.06,231.0,19.41893362]
[1738350408679,0.03171081,231.06,231.01,4.3298]
[1738350409277,0.03171081,231.06,231.02,4.3296]
[1738350409483,0.03171081,231.06,231.0,19.41893362]
[1738350409677,0.03171081,231.06,231.01,4.3297]
[1738350409983,0.03171081,231.06,231.0,19.41893362]
[1738350411883,0.03171081,231.06,231.0,23.74893362]
[1738350412086,0.03171081,231.06,231.04,19.41893362]
[1738350414587,2.8446,231.23,231.04,19.41893362]
[1738350414896,2.8446,231.23,231.08,19.41893362]
[1738350414897,4.3133,231.23,231.08,19.41893362]
[1738350415695,4.35952812,231.18,231.13,0.0329059]
[1738350415890,0.03282812,231.18,231.13,0.0329059]
[1738350417798,4.3272,231.15,231.13,0.0329059]
[1738350418001,0.03282812,231.18,231.13,0.0329059]
[1738350418494,4.3274,231.14,231.13,0.0329059]
[1738350421504,0.03282812,231.18,231.04,19.41893362]
[1738350421694,4.3133,231.23,231.01,0.2394]
[1738350421899,4.3133,231.23,231.06,4.3289]
[1738350422202,4.328,231.11,231.05,19.41893362]
[1738350422399,4.328,231.11,231.05,23.74783362]
[1738350422601,4.3133,231.23,231.05,19.41893362]
[1738350422895,0.03292492,231.1,231.05,19.41893362]
[1738350423101,0.03312037,231.1,231.05,19.41893362]
[1738350423302,0.03312037,231.1,231.0,19.41893362]
[1738350423497,19.41893362,231.21,231.0,19.41893362]
[1738350423694,0.02851484,231.07,231.04,19.41893362]
[1738350423898,4.3133,231.23,231.04,19.41893362]
[1738350424098,19.41893362,231.21,231.04,19.41893362]
[1738350424303,19.41893362,231.21,231.0,19.41893362]
[1738350424499,19.41893362,231.17,231.0,19.41893362]
[1738350424701,19.41893362,231.17,231.0,23.74893362]
[1738350424901,19.41893362,231.17,231.0,19.41893362]
[1738350425099,19.41893362,231.17,231.06,0.02851484]
[1738350425100,4.3286,231.08,231.06,0.02851484]
[1738350425402,0.03113246,231.11,231.06,0.02851484]
[1738350425600,4.3287,231.07,231.06,0.02851484]
[1738350427104,4.3284,231.09,231.06,0.02851484]
[1738350427301,2.819,231.1,231.06,0.02851484]
[1738350427700,4.3294,231.04,230.97,4.3305]
[1738350427898,4.1522,231.1,230.92,19.41893362]
[1738350428504,19.41893362,231.05,230.88,19.41893362]
[1738350428699,19.41893362,230.97,230.85,148.91107513]
[1738350428903,4.3318,230.91,230.84,148.91107513]
[1738350429207,2.8638,230.96,230.86,119.12886011]
[1738350429407,4.3313,230.93,230.86,119.12886011]
[1738350429702,0.03083615,230.91,230.88,19.41893362]
[1738350429899,1.4735,231.03,230.88,19.41893362]
[1738350430103,1.4735,231.03,230.92,19.41893362]
[1738350431105,0.029832,231.0,230.95,0.03083615]
[1738350433708,0.029832,231.0,230.96,19.41893362]
[1738350434216,0.029832,231.0,230.95,0.03083615]
[1738350434811,0.029832,231.0,230.98,4.3303]
[1738350435117,0.003632,231.0,230.96,19.41893362]
[1738350436615,0.003632,231.0,230.95,0.03083615]
[1738350437410,0.003632,231.0,230.96,19.41893362]
[1738350437813,1.3903,231.08,230.96,19.41893362]
[1738350438114,1.3903,231.08,231.0,19.41893362]
[1738350438320,5.7189,231.08,231.0,19.41893362]
[1738350438909,1.3582,231.16,231.04,19.41893362]
[1738350439116,0.03112672,231.06,231.04,19.41893362]
[1738350439317,2.6998,231.16,231.05,4.329]
[1738350439517,5.85910717,231.26,231.11,19.41893362]
[1738350439709,8.55890717,231.26,231.11,19.41893362]
[1738350439912,4.3259,231.22,231.12,4.3277]
[1738350440113,8.55890717,231.26,231.11,19.41893362]
[1738350440512,4.3262,231.21,231.08,4.3284]
[1738350440711,2.6998,231.26,231.07,19.41893362]
[1738350441012,0.02979429,231.21,231.16,0.02890231]
[1738350443013,4.3265,231.19,231.16,0.02890231]
[1738350443213,0.02979429,231.21,231.16,0.02890231]
[1738350443620,4.3265,231.19,231.16,0.02890231]
[1738350443816,0.02979429,231.21,231.16,0.02890231]
[1738350444617,0.02979429,231.21,231.19,19.41893362]
[1738350444819,0.02979429,231.21,231.19,23.74533362]
[1738350445114,4.2173,231.33,231.19,19.41893362]
[1738350445324,4.3244,231.3,231.2,4.3262]
[1738350445517,46.87285738,231.41,231.19,19.41893362]
[1738350445716,4.2593,231.38,231.19,19.41893362]
[1738350445912,4.3244,231.31,231.2,4.3263]
[1738350446218,0.03286689,231.31,231.26,0.02836884]
[1738350446919,4.3248,231.28,231.26,0.02836884]
[1738350447121,0.03286689,231.31,231.26,0.02836884]
[1738350447425,4.3245,231.3,231.26,0.02836884]
[1738350447618,0.03286689,231.31,231.26,0.02836884]
[1738350448423,0.03286689,231.31,231.17,4.3267]
[1738350448725,19.41893362,231.34,231.18,4.3266]
[1738350449223,4.3254,231.25,231.18,4.3266]
[1738350449419,19.41893362,231.34,231.15,19.41893362]
[1738350449620,19.41893362,231.34,231.19,0.0307583]
[1738350449621,0.03134575,231.24,231.19,0.0307583]
[1738350449924,19.41893362,231.3,231.14,4.3274]
[1738350450117,1.4687,231.29,231.14,4.3274]
[1738350450322,4.3264,231.2,231.19,0.03051597]
[1738350450921,4.326,231.22,231.19,0.03051597]
[1738350451122,0.02893065,231.24,231.19,0.03051597]
[1738350451324,4.3258,231.23,231.19,0.03051597]
[1738350451624,0.02893065,231.24,231.19,0.03051597]
[1738350452923,0.02893065,231.24,231.2,4.3262]
[1738350453123,0.02893065,231.24,231.19,0.03051597]
[1738350456124,0.02893065,231.24,231.08,19.41893362]
[1738350456524,1.4094,231.28,231.07,85.66]
[1738350456525,1.4094,231.28,231.12,19.41893362]
[1738350457224,1.4094,231.28,231.08,19.41893362]
[1738350457428,4.3265,231.19,231.18,0.0313472]
[1738350457925,4.3278,231.13,231.06,4.3289]
[1738350458121,19.41893362,231.2,231.0,19.41893362]
[1738350458328,1.4183,231.19,231.0,19.41893362]
[1738350459128,0.03245557,231.12,231.07,0.02916761]
[1738350460832,4.328,231.11,231.07,0.02916761]
[1738350461330,0.03245557,231.12,230.96,19.41893362]
[1738350461632,19.41893362,231.16,230.96,19.41893362]
[1738350462030,4.3285,231.09,230.96,19.41893362]
[1738350462333,1.4191,231.18,231.0,19.41893362]
[1738350462534,4.3278,231.12,231.0,19.41893362]
[1738350462735,0.03274758,231.05,231.0,19.41893362]
[1738350462929,0.03274758,231.05,231.04,19.41893362]
[1738350463129,4.3278,231.12,231.04,23.74803362]
[1738350463432,0.02888839,231.07,231.04,19.41893362]
[1738350463730,4.3273,231.15,231.06,4.3287]
[1738350463929,1.3943,231.17,231.08,19.41893362]
[1738350464127,0.03001873,231.13,231.08,19.41893362]
[1738350464532,1.3943,231.27,231.08,19.41893362]
[1738350464729,0.03070202,231.13,231.08,19.41893362]
[1738350464924,1.3943,231.27,231.08,19.41893362]
[1738350465123,0.02734132,231.13,231.08,19.41893362]
[1738350465633,0.03194774,231.13,231.08,19.41893362]
[1738350466435,0.03194774,231.13,231.04,19.41893362]
[1738350467326,0.03194774,231.13,231.06,4.3288]
[1738350467637,0.03194774,231.13,231.04,19.41893362]
[1738350467830,0.03194774,231.13,231.09,4.3282]
[1738350468829,0.03194774,231.13,231.08,19.41893362]
[1738350471436,0.03194774,231.13,231.09,4.3283]
[1738350472951,0.03194774,231.13,231.08,19.41893362]